bitfinex/quotes_BTCUSD_20251025
["timestamp","ask_amount","ask_price","bid_price","bid_amount"]
[1761407868520,0.20386958,111410.0,111400.0,0.30349327]
[1761407868726,0.20386958,111410.0,111400.0,0.12761995]
[1761407868926,0.20386958,111410.0,111400.0,0.14557327]
[1761407869466,0.20386958,111410.0,111400.0,0.30349327]
[1761407869672,0.20386958,111410.0,111400.0,0.12761995]
[1761407869926,0.20386958,111410.0,111400.0,0.48302648]
[1761407870105,0.20386958,111410.0,111400.0,0.46507316]
[1761407870709,0.20386958,111410.0,111400.0,0.30715316]
[1761407871125,0.20386958,111410.0,111400.0,0.46503316]
[1761407871593,0.20386958,111410.0,111400.0,0.30715316]
[1761407871809,0.20386958,111410.0,111400.0,0.46503316]
[1761407872174,0.23081316,111410.0,111400.0,0.46503316]
[1761407872372,0.23081316,111410.0,111400.0,0.30715316]
[1761407872573,0.23081316,111410.0,111400.0,0.46503316]
[1761407873389,0.23081316,111410.0,111400.0,0.30715316]
[1761407873595,0.23081316,111410.0,111400.0,0.46503316]
[1761407873906,0.23081316,111410.0,111400.0,0.30715316]
[1761407874452,0.23081316,111410.0,111400.0,0.46503316]
[1761407874794,0.23081316,111410.0,111400.0,0.30715316]
[1761407875299,0.23081316,111410.0,111400.0,0.46503316]
[1761407875463,0.23081316,111410.0,111400.0,0.30715316]
[1761407876289,0.23081316,111410.0,111400.0,0.46503316]
[1761407876489,0.23081316,111410.0,111400.0,0.12761995]
[1761407876688,0.27520962,111410.0,111400.0,0.03780094]
[1761407876891,0.43308962,111410.0,111400.0,0.00161866]
[1761407877301,0.43308962,111410.0,111400.0,0.03780094]
[1761407877757,0.38869316,111410.0,111400.0,0.03780094]
[1761407886383,0.05129607,111410.0,111400.0,0.32510648]
[1761407886589,0.005,111410.0,111400.0,0.30715316]
[1761407887761,0.02743245,111420.0,111410.0,0.21569937]
[1761407888088,0.02743245,111420.0,111410.0,0.46339838]
[1761407888273,0.02743245,111420.0,111410.0,0.46379987]
[1761407889247,0.02943245,111420.0,111410.0,0.46479987]
[1761407889927,0.02943245,111420.0,111410.0,0.46579987]
[1761407893262,0.20893343,111420.0,111410.0,0.46579987]
[1761407893471,0.02943245,111420.0,111410.0,0.46579987]
[1761407895478,0.00249122,111420.0,111410.0,0.46579987]
[1761407938465,0.1819922,111420.0,111410.0,0.46579987]
[1761407939205,0.00249122,111420.0,111410.0,0.46579987]
[1761407939975,0.1819922,111420.0,111410.0,0.46579987]
[1761407952366,0.00249122,111420.0,111410.0,0.46579987]
[1761407952866,0.1819922,111420.0,111410.0,0.46579987]
[1761407955649,0.1819922,111420.0,111410.0,0.28628278]
[1761407956291,0.1819922,111420.0,111410.0,0.46579987]
[1761407957006,0.1819922,111420.0,111410.0,0.03858377]
[1761407957219,0.37598112,111420.0,111410.0,0.03858377]
[1761407957427,0.39535124,111420.0,111410.0,0.00240149]
[1761407957667,0.39535124,111420.0,111410.0,0.03858377]
[1761407968247,0.42229552,111420.0,111410.0,0.03858377]
[1761407971329,0.76229552,111420.0,111410.0,0.03858377]
[1761407981873,2.86229552,111420.0,111410.0,0.03858377]
[1761407993355,2.8260666,111420.0,111410.0,0.03858377]
[1761408001009,2.82606604,111420.0,111410.0,0.03858377]
[1761408002218,2.80669648,111420.0,111410.0,0.03858377]
[1761408006916,2.64893648,111420.0,111410.0,0.14635448]
[1761408007120,2.64893648,111420.0,111410.0,0.12840278]
[1761408008794,2.64893648,111420.0,111410.0,0.30791987]
[1761408009666,2.64893648,111420.0,111410.0,0.46563987]
[1761408011298,2.10249122,111420.0,111410.0,0.46563987]
[1761408030666,2.10249122,111420.0,111410.0,0.42945759]
[1761408030886,2.10249122,111420.0,111410.0,0.46563987]
[1761408032294,2.10249122,111420.0,111410.0,0.52307987]
[1761408034170,2.10249122,111420.0,111410.0,0.48689759]
[1761408034495,2.10249122,111420.0,111410.0,0.52307987]
[1761408036280,2.10249122,111420.0,111410.0,0.55001765]
[1761408036668,2.10049122,111420.0,111410.0,0.54801765]
[1761408036862,2.10149122,111420.0,111410.0,0.55201765]
[1761408037104,2.10149122,111420.0,111410.0,0.55301765]
[1761408038438,3.18872722,111420.0,111410.0,0.55301765]
[1761408066440,3.18872722,111420.0,111410.0,0.52607987]
[1761408066803,3.21566383,111420.0,111410.0,0.52607987]
[1761408075013,3.21566383,111420.0,111410.0,0.54397987]
[1761408086120,3.25667983,111420.0,111410.0,0.54397987]
[1761408091995,3.25398732,111420.0,111410.0,0.54397987]
[1761408092273,3.25212609,111420.0,111410.0,0.54397987]
[1761408095363,3.25212609,111420.0,111410.0,0.50779759]
[1761408095690,3.25212609,111420.0,111410.0,0.54397987]
[1761408099000,3.25212609,111420.0,111410.0,0.50779759]
[1761408101143,3.25212609,111420.0,111410.0,0.54397987]
[1761408109999,3.22518948,111420.0,111410.0,0.54397987]
[1761408112128,3.22249697,111420.0,111410.0,0.54397987]
[1761408123866,3.22249697,111420.0,111410.0,0.32881987]
[1761408124088,3.22249697,111420.0,111410.0,0.54377987]
[1761408127296,3.40199795,111420.0,111410.0,0.36426278]
[1761408127502,3.40199795,111420.0,111410.0,0.54377987]
[1761408127727,3.22249697,111420.0,111410.0,0.54377987]
[1761408128164,3.22249697,111420.0,111410.0,0.48637987]
[1761408130745,3.40199795,111420.0,111410.0,0.48637987]
[1761408131326,3.22249697,111420.0,111410.0,0.48637987]
[1761408141276,3.74199795,111420.0,111410.0,0.30686278]
[1761408142353,3.74199795,111420.0,111410.0,0.30682278]
[1761408144923,3.89951795,111420.0,111410.0,0.05948377]
[1761408145172,3.92646064,111420.0,111410.0,0.05948377]
[1761408145569,4.01627965,111420.0,111410.0,0.05948377]
[1761408145792,3.92646064,111420.0,111410.0,0.05948377]
[1761408156085,3.22249697,111420.0,111410.0,0.48637987]
[1761408158474,3.22249697,111420.0,111410.0,0.54381987]
[1761408193744,3.22249697,111420.0,111410.0,0.57075762]
[1761408195372,3.19849697,111420.0,111410.0,0.58075761]
[1761408196459,3.15872651,111420.0,111410.0,0.92575759]
[1761408196662,3.04961475,111420.0,111410.0,0.93875759]
[1761408196874,3.04961475,111420.0,111410.0,0.94075759]
[1761408197167,3.006176,111420.0,111410.0,0.94075759]
[1761408218995,3.006176,111420.0,111410.0,1.12019759]
[1761408226321,3.006176,111420.0,111410.0,0.9526376]
[1761408226530,3.006176,111420.0,111410.0,1.1100776]
[1761408226701,3.006176,111420.0,111410.0,1.12007759]
[1761408227531,3.006176,111420.0,111410.0,0.76007762]
[1761408227959,3.006176,111420.0,111410.0,0.77007761]
[1761408228174,3.006176,111420.0,111410.0,0.76007762]
[1761408228599,3.006176,111420.0,111410.0,0.59063761]
[1761408228858,3.006176,111420.0,111410.0,0.58063762]
[1761408229280,3.006176,111420.0,111410.0,0.59063761]
[1761408229616,3.006176,111420.0,111410.0,0.58063762]
[1761408231712,3.006176,111420.0,111410.0,0.42319762]
[1761408231988,3.006176,111420.0,111410.0,0.58063762]
[1761408232486,3.006176,111420.0,111410.0,0.59063761]
[1761408233075,3.006176,111420.0,111410.0,0.42319762]
[1761408233278,3.006176,111420.0,111410.0,0.58063762]
[1761408233686,3.006176,111420.0,111410.0,0.42319762]
[1761408233899,3.006176,111420.0,111410.0,0.58063762]
[1761408240980,3.18567698,111420.0,111410.0,0.54445534]
[1761408241193,3.006176,111420.0,111410.0,0.51751759]
[1761408241629,3.006176,111420.0,111410.0,0.55369987]
[1761408242021,3.004176,111420.0,111410.0,0.53869987]
[1761408242225,3.004176,111420.0,111410.0,0.53969987]
[1761408242432,3.18367698,111420.0,111410.0,0.53969987]
[1761408261017,3.27349599,111420.0,111410.0,0.01930149]
[1761408261233,3.860795,111420.0,111410.0,0.01930149]
[1761408261451,3.90707906,111420.0,111410.0,0.01930149]
[1761408262414,3.90707906,111420.0,111410.0,0.05548377]
[1761408262818,3.90707906,111420.0,111410.0,0.05448377]
[1761408263476,4.01707906,111420.0,111410.0,0.05448377]
[1761408263630,4.01707906,111420.0,111410.0,0.05548377]
[1761408263631,4.02407906,111420.0,111410.0,0.05548377]
[1761408267952,3.68696104,111420.0,111410.0,0.05548377]
[1761408268175,3.57696104,111420.0,111410.0,0.05548377]
[1761408268396,3.55762531,111420.0,111410.0,0.05548377]
[1761408275415,3.57689252,111420.0,111410.0,0.05548377]
[1761408275944,3.57689252,111420.0,111410.0,0.01930149]
[1761408276162,3.55762531,111420.0,111410.0,0.05548377]
[1761408276420,3.57689283,111420.0,111410.0,0.05548377]
[1761408279575,3.57689283,111420.0,111410.0,0.01930149]
[1761408284297,3.65450248,111420.0,111410.0,0.01930149]
[1761408286435,3.65450248,111420.0,111410.0,0.05548377]
[1761408290451,3.67866144,111420.0,111410.0,0.05548377]
[1761408294248,3.60105179,111420.0,111410.0,0.05548377]
[1761408296771,3.57689283,111420.0,111410.0,0.05548377]
[1761408306406,3.5499445,111420.0,111410.0,0.05548377]
[1761408306626,3.5499445,111420.0,111410.0,0.30286278]
[1761408306627,3.19067698,111420.0,111410.0,0.30286278]
[1761408307050,3.53067698,111420.0,111410.0,0.48237987]
[1761408307899,3.53067698,111420.0,111410.0,0.48337987]
[1761408308631,3.52367698,111420.0,111410.0,0.48237987]
[1761408308939,0.27398709,111410.0,111380.0,3.70870044]
[1761408309198,0.27398709,111410.0,111380.0,3.28795971]
[1761408309199,0.51954933,111390.0,111380.0,3.28795971]
[1761408309407,0.64335067,111390.0,111380.0,3.0480851]
[1761408309610,0.76309943,111390.0,111380.0,2.92572319]
[1761408309839,0.69497759,111390.0,111380.0,2.92572319]
[1761408309998,0.86461561,111390.0,111380.0,2.55076821]
[1761408310197,0.84045665,111390.0,111380.0,2.1856745]
[1761408310531,0.84045665,111390.0,111380.0,1.98066238]
[1761408310726,0.84045665,111390.0,111380.0,1.85079784]
[1761408311261,0.71851869,111390.0,111380.0,1.85079784]
[1761408311482,0.72251869,111390.0,111380.0,1.85079784]
[1761408312116,0.75951869,111390.0,111380.0,1.85479784]
[1761408314962,0.75951869,111390.0,111380.0,1.85523223]
[1761408319109,0.78647697,111390.0,111380.0,1.85523223]
[1761408321233,0.81063593,111390.0,111380.0,1.85523223]
[1761408321482,0.78647697,111390.0,111380.0,1.85523223]
[1761408322914,0.78170045,111390.0,111380.0,1.85523223]
[1761408323217,0.80576196,111390.0,111380.0,1.85523223]
[1761408327261,0.81576196,111390.0,111380.0,1.85523223]
[1761408327477,0.84791863,111390.0,111380.0,1.85523223]
[1761408329057,0.83791863,111390.0,111380.0,1.85523223]
[1761408329228,0.80576196,111390.0,111380.0,1.85523223]
[1761408329429,0.83791863,111390.0,111380.0,1.85523223]
[1761408329629,0.83791863,111390.0,111380.0,2.01443223]
[1761408329835,0.80576196,111390.0,111380.0,2.01443223]
[1761408330041,0.80576196,111390.0,111380.0,2.01451223]
[1761408331821,0.781603,111390.0,111380.0,2.01451223]
[1761408332245,0.80576196,111390.0,111380.0,2.01451223]
[1761408332895,0.781603,111390.0,111380.0,2.01451223]
[1761408333242,0.80576196,111390.0,111380.0,2.01451223]
[1761408335753,0.781603,111390.0,111380.0,2.01451223]
[1761408336710,0.69178399,111390.0,111380.0,2.01451223]
[1761408337127,0.60196498,111390.0,111380.0,2.01451223]
[1761408337334,0.62612394,111390.0,111380.0,2.01451223]
[1761408337759,0.58512394,111390.0,111380.0,2.01051223]
[1761408338205,0.62528061,111390.0,111380.0,2.01151223]
[1761408338423,0.7273608,111390.0,111380.0,2.01151223]
[1761408343231,0.69520413,111390.0,111380.0,2.01151223]
[1761408347419,0.69519474,111390.0,111380.0,2.01151223]
[1761408348441,0.6784302,111390.0,111380.0,2.01151223]
[1761408351684,0.78501531,111390.0,111380.0,1.85223223]
[1761408352062,0.78501531,111390.0,111380.0,2.01123223]
[1761408352471,0.76824921,111390.0,111380.0,2.01123223]
[1761408352673,0.76501321,111390.0,111380.0,2.01123223]
[1761408353250,0.78177934,111390.0,111380.0,1.85223223]
[1761408353462,0.81393601,111390.0,111380.0,1.85223223]
[1761408353670,0.83801205,111390.0,111380.0,1.85223223]
[1761408353995,0.97009377,111390.0,111380.0,1.85223223]
[1761408356469,0.9379371,111390.0,111380.0,1.85223223]
[1761408358084,1.29150448,111390.0,111380.0,0.23417518]
[1761408358313,0.68817772,111380.0,111370.0,0.00448]
[1761408358519,0.85175373,111380.0,111370.0,1e-08]
[1761408358725,0.55757382,111350.0,111340.0,0.004]
[1761408358954,1.11704202,111350.0,111340.0,1e-08]
[1761408359161,0.93596046,111350.0,111340.0,1e-08]
[1761408359408,0.1797154,111290.0,111270.0,0.05722184]
[1761408359686,0.51972681,111280.0,111270.0,0.17167014]
[1761408360006,0.51972681,111280.0,111270.0,0.00049122]
[1761408360430,0.52955904,111260.0,111250.0,0.59]
[1761408360646,0.52955904,111260.0,111250.0,0.5901469]
[1761408360647,0.82177711,111260.0,111250.0,0.5901469]
[1761408360850,0.89560082,111260.0,111250.0,0.5901469]
[1761408361050,0.70151028,111260.0,111250.0,0.5901469]
[1761408361269,0.82148475,111260.0,111250.0,0.5901469]
[1761408361467,0.78959089,111260.0,111250.0,0.5901469]
[1761408362085,0.34,111260.0,111250.0,0.64956159]
[1761408362290,0.34,111260.0,111250.0,0.5901469]
[1761408362291,0.42981901,111260.0,111250.0,0.5901469]
[1761408362474,0.344,111260.0,111250.0,0.98832218]
[1761408362680,0.344,111260.0,111250.0,1.11432347]
[1761408363011,0.18869621,111290.0,111260.0,0.21592834]
[1761408363248,0.27827676,111310.0,111270.0,0.37712524]
[1761408363249,0.01597694,111280.0,111270.0,0.37712524]
[1761408363473,0.01597694,111310.0,111290.0,0.17971058]
[1761408363689,0.01597694,111310.0,111300.0,0.16136]
[1761408363908,0.01597694,111310.0,111300.0,0.43471679]
[1761408364125,0.19564042,111320.0,111300.0,0.25502228]
[1761408364561,0.19564042,111320.0,111300.0,0.4347167]
[1761408364766,0.01646756,111320.0,111300.0,0.4347167]
[1761408364963,0.1961307,111320.0,111300.0,0.4347167]
[1761408365200,0.34,111310.0,111300.0,0.49615943]
[1761408365405,0.34,111310.0,111300.0,0.03618228]
[1761408365668,0.34,111310.0,111300.0,0.25514228]
[1761408366088,0.346,111310.0,111300.0,0.001]
[1761408366302,0.346,111310.0,111300.0,0.21896]
[1761408366487,0.346,111310.0,111300.0,0.22096]
[1761408366954,0.34,111310.0,111300.0,0.47490385]
[1761408367188,0.343,111310.0,111300.0,0.47586385]
[1761408368542,0.343,111310.0,111300.0,0.03718228]
[1761408368753,0.34,111310.0,111300.0,0.25514228]
[1761408369027,0.342,111310.0,111300.0,0.43683679]
[1761408369225,0.342,111310.0,111300.0,0.43857591]
[1761408369450,0.342,111310.0,111300.0,0.43757591]
[1761408369616,0.342,111310.0,111300.0,0.49930456]
[1761408369820,0.52167837,111310.0,111300.0,0.00373912]
[1761408369999,0.342,111310.0,111300.0,0.22265912]
[1761408370384,0.52167837,111310.0,111300.0,0.22265912]
[1761408370993,0.342,111310.0,111300.0,0.43853591]
[1761408371221,0.342,111310.0,111300.0,0.50036047]
[1761408371894,0.342,111310.0,111300.0,0.59017948]
[1761408372139,0.002,111310.0,111300.0,0.59017948]
[1761408374925,0.002,111310.0,111300.0,0.58917948]
[1761408375141,0.002,111310.0,111300.0,0.00473912]
[1761408375142,0.61149738,111310.0,111300.0,0.00473912]
[1761408375358,0.60949738,111310.0,111300.0,0.00373912]
[1761408375574,0.61049738,111310.0,111300.0,0.01173912]
[1761408375800,0.001,111310.0,111300.0,0.25471813]
[1761408376011,0.19613019,111320.0,111300.0,0.25271813]
[1761408376115,0.18015325,111320.0,111310.0,0.05748]
[1761408377361,0.18415325,111320.0,111310.0,0.05848]
[1761408379146,0.18415325,111320.0,111310.0,0.22192]
[1761408379355,0.18415325,111320.0,111310.0,0.22292]
[1761408380561,0.18415325,111320.0,111310.0,0.22268]
[1761408381525,0.18415325,111320.0,111310.0,0.22420159]
[1761408382633,0.18415285,111320.0,111310.0,0.26893547]
[1761408382992,0.00449062,111320.0,111310.0,0.26893547]
[1761408383219,0.02046756,111320.0,111310.0,0.26893547]
[1761408383640,0.20012979,111320.0,111310.0,0.26881547]
[1761408383848,0.18415285,111320.0,111310.0,0.22408159]
[1761408385465,0.00449062,111320.0,111310.0,0.22408159]
[1761408386436,0.00449062,111320.0,111310.0,0.40375996]
[1761408388786,0.00449062,111320.0,111310.0,0.43994224]
[1761408389294,0.00449062,111320.0,111310.0,0.52976125]
[1761408389509,0.00449062,111320.0,111310.0,0.6050511]
[1761408390114,0.00449062,111320.0,111310.0,0.56886882]
[1761408390593,0.00449062,111320.0,111310.0,0.6050511]
[1761408392068,0.00449062,111320.0,111310.0,0.6040511]
[1761408392278,0.00049062,111320.0,111310.0,0.6030511]
[1761408392497,0.00049062,111320.0,111310.0,0.6050511]
[1761408392698,0.00049062,111320.0,111310.0,0.6060511]
[1761408404636,0.17969451,111300.0,111250.0,0.7787629]
[1761408404862,0.17973338,111280.0,111250.0,0.86858191]
[1761408405078,0.03527749,111280.0,111260.0,0.40187881]
[1761408405290,0.19570507,111280.0,111260.0,0.22212]
[1761408405500,0.19570422,111280.0,111260.0,0.49169787]
[1761408405915,0.19570422,111280.0,111260.0,0.31193901]
[1761408406125,0.19619454,111280.0,111260.0,0.31193901]
[1761408406335,0.1802176,111280.0,111260.0,0.31193901]
[1761408406546,0.1802176,111280.0,111260.0,0.49169679]
[1761408407513,0.1802176,111280.0,111260.0,0.49369679]
[1761408407741,0.1802176,111280.0,111260.0,0.49669679]
[1761408409087,0.00049032,111280.0,111270.0,0.17974296]
[1761408409312,0.00049032,111280.0,111270.0,0.06764397]
[1761408409513,0.19619407,111280.0,111270.0,0.06764397]
[1761408409652,0.18021713,111280.0,111270.0,0.06764397]
[1761408409864,0.00049032,111280.0,111270.0,0.06764397]
[1761408410064,0.01646726,111280.0,111270.0,0.06764397]
[1761408410270,0.01646726,111280.0,111270.0,0.24738693]
[1761408410481,0.00049032,111280.0,111270.0,0.24738693]
[1761408410665,0.00149032,111280.0,111270.0,0.24925702]
[1761408413133,0.00149032,111280.0,111270.0,0.06951406]
[1761408413343,0.00149032,111280.0,111270.0,0.24925702]
[1761408414227,0.19719407,111280.0,111270.0,0.16615009]
[1761408414351,0.18121713,111280.0,111270.0,0.16615009]
[1761408415398,0.27103614,111280.0,111270.0,1e-08]
[1761408415604,1.5016902,111280.0,111270.0,1e-08]
[1761408415806,0.52975912,111260.0,111250.0,0.59]
[1761408415982,1.26643136,111260.0,111250.0,0.59]
[1761408417209,1.29543136,111260.0,111250.0,0.593]
[1761408417428,1.29743136,111260.0,111250.0,0.593]
[1761408417946,1.39743136,111260.0,111250.0,0.593]
[1761408418363,1.26341808,111260.0,111250.0,0.593]
[1761408419300,1.27341808,111260.0,111250.0,0.593]
[1761408419917,1.26341808,111260.0,111250.0,0.593]
[1761408420923,1.26325808,111260.0,111250.0,0.593]
[1761408421161,1.09845808,111260.0,111250.0,0.593]
[1761408421500,1.26325808,111260.0,111250.0,0.59343519]
[1761408422021,1.09845808,111260.0,111250.0,0.59343519]
[1761408422222,1.26325808,111260.0,111250.0,0.59343519]
[1761408422810,0.80537813,111260.0,111250.0,0.59343519]
[1761408423453,0.80529813,111260.0,111250.0,0.59343519]
[1761408423666,0.30057813,111260.0,111250.0,0.59343519]
[1761408424821,0.26957813,111260.0,111250.0,0.59043519]
[1761408425030,0.27257813,111260.0,111250.0,0.59143519]
[1761408425846,0.61257813,111260.0,111250.0,0.59143519]
[1761408427689,0.61257813,111260.0,111250.0,0.59143519]
[1761408428675,0.003,111260.0,111250.0,0.77121047]
[1761408428914,0.01897694,111260.0,111250.0,0.77121047]
[1761408429695,0.01897694,111260.0,111250.0,0.80081857]
[1761408429896,0.01897694,111260.0,111250.0,0.77121047]
[1761408430672,0.003,111260.0,111250.0,0.77121047]
[1761408436713,0.003,111260.0,111250.0,0.89721176]
[1761408437426,0.01646726,111280.0,111270.0,0.17974296]
[1761408437670,0.00049032,111280.0,111270.0,0.32348508]
[1761408437911,0.00049032,111280.0,111270.0,0.56349307]
[1761408438605,0.00049032,111280.0,111270.0,0.56449307]
[1761408439060,0.00049032,111280.0,111270.0,0.56349307]
[1761408439495,0.00049032,111280.0,111270.0,0.56549307]
[1761408440099,0.00049032,111280.0,111270.0,0.56749307]
[1761408450614,0.23571584,111340.0,111310.0,0.17966275]
[1761408450819,0.19562479,111330.0,111310.0,0.3623944]
[1761408451037,0.21483707,111330.0,111320.0,0.17966223]
[1761408451185,0.53886013,111330.0,111320.0,0.17966223]
[1761408452143,0.54986013,111330.0,111320.0,0.18066223]
[1761408452532,0.03021228,111330.0,111320.0,0.18066223]
[1761408452704,0.011,111330.0,111320.0,0.23308142]
[1761408452919,0.08981901,111330.0,111270.0,0.54999999]
[1761408453131,0.52974295,111270.0,111260.0,0.00021758]
[1761408453380,1.01266946,111270.0,111260.0,0.1683479]
[1761408453999,1.03667837,111270.0,111260.0,0.1683479]
[1761408454301,1.05588549,111270.0,111260.0,0.1683479]
[1761408454971,1.03187658,111270.0,111260.0,0.1683479]
[1761408455178,1.03187658,111270.0,111260.0,0.1693479]
[1761408455397,1.10348847,111270.0,111260.0,0.1693479]
[1761408455615,1.10248847,111270.0,111260.0,0.1683479]
[1761408456029,1.14970797,111270.0,111260.0,0.1693479]
[1761408456222,1.1054558,111270.0,111260.0,0.1693479]
[1761408457438,0.66678146,111270.0,111260.0,0.1693479]
[1761408457614,1.1054558,111270.0,111260.0,0.1693479]
[1761408461295,1.08144497,111270.0,111260.0,0.1693479]
[1761408469849,0.17975912,111260.0,111250.0,4.55029537]
[1761408470052,1.0234185,111260.0,111250.0,4.50237253]
[1761408470259,1.05546812,111260.0,111250.0,4.37685877]
[1761408470465,1.02525921,111260.0,111250.0,4.10381258]
[1761408470728,1.37498937,111260.0,111250.0,3.93708392]
[1761408471104,1.37498937,111260.0,111250.0,3.94508392]
[1761408471105,1.37598937,111260.0,111250.0,3.94508392]
[1761408471320,1.35888033,111260.0,111250.0,3.38593328]
[1761408471668,1.39288033,111260.0,111250.0,3.22141886]
[1761408471802,1.39288033,111260.0,111250.0,3.09438356]
[1761408472015,1.39288033,111260.0,111250.0,2.98724326]
[1761408472216,1.36267142,111260.0,111250.0,2.72932477]
[1761408472430,1.36267142,111260.0,111250.0,2.61462317]
[1761408472658,1.36667142,111260.0,111250.0,2.40561777]
[1761408473636,1.36667142,111260.0,111250.0,1.76016219]
[1761408473845,1.36667142,111260.0,111250.0,1.67174332]
[1761408474064,1.36667142,111260.0,111250.0,1.52828655]
[1761408474283,1.36667142,111260.0,111250.0,1.31637038]
[1761408474485,1.36667142,111260.0,111250.0,1.08799889]
[1761408474632,1.36667142,111260.0,111250.0,0.91699396]
[1761408474832,1.36667142,111260.0,111250.0,0.79721367]
[1761408475040,1.36667142,111260.0,111250.0,0.54545306]
[1761408475296,1.36667142,111260.0,111250.0,0.47235043]
[1761408475443,1.36667142,111260.0,111250.0,0.22579174]
[1761408475660,1.36667142,111260.0,111250.0,0.00537148]
[1761408476436,1.36667142,111260.0,111220.0,0.00408]
[1761408476437,0.64424526,111250.0,111220.0,0.00408]
[1761408476653,0.95407519,111250.0,111220.0,0.00408]
[1761408477398,1.27359644,111250.0,111220.0,0.00408]
[1761408477610,1.27559644,111250.0,111220.0,0.00408]
[1761408477813,1.29259644,111250.0,111240.0,0.006]
[1761408480636,0.70964519,111250.0,111240.0,0.006]
[1761408481027,1.18982621,111250.0,111240.0,0.006]
[1761408481235,1.19776644,111250.0,111240.0,0.006]
[1761408482327,1.21391445,111250.0,111240.0,0.00621764]
[1761408484404,1.31391446,111250.0,111240.0,0.00621764]
[1761408484631,1.32391445,111250.0,111240.0,0.00621764]
[1761408485575,1.27588789,111250.0,111240.0,0.00621764]
[1761408485789,1.27588789,111250.0,111220.0,0.02008]
[1761408485790,0.83932885,111230.0,111220.0,0.02008]
[1761408485995,1.02833666,111230.0,111220.0,0.02012896]
[1761408486493,1.02833666,111230.0,111220.0,0.00456432]
[1761408487487,1.03033666,111230.0,111220.0,0.00556432]
[1761408489306,1.03133666,111230.0,111220.0,0.00556432]
[1761408489535,1.0313754,111230.0,111220.0,0.00556432]
[1761408489735,1.0303754,111230.0,111220.0,0.00556432]
[1761408490329,0.99836883,111230.0,111220.0,0.00456432]
[1761408490502,0.70484757,111230.0,111220.0,0.00756432]
[1761408490708,0.68884757,111230.0,111220.0,0.00456432]
[1761408491091,0.71084757,111230.0,111220.0,0.00756432]
[1761408491296,0.70884757,111230.0,111220.0,0.00756432]
[1761408491697,0.71084757,111230.0,111220.0,0.00756432]
[1761408492064,1.03036882,111230.0,111220.0,0.00756432]
[1761408492495,0.71084757,111230.0,111220.0,0.00756432]
[1761408493543,0.74289646,111230.0,111220.0,0.00756432]
[1761408494159,0.71084757,111230.0,111220.0,0.00756432]
[1761408495775,0.53103997,111230.0,111220.0,0.00756432]
[1761408495994,0.51510161,111230.0,111220.0,0.06508432]
[1761408496192,0.56311147,111230.0,111220.0,0.06508432]
[1761408496414,0.56311147,111230.0,111220.0,0.23240432]
[1761408496898,0.51510161,111230.0,111220.0,0.23240432]
[1761408497330,0.56311147,111230.0,111220.0,0.23240432]
[1761408497792,0.51510161,111230.0,111220.0,0.22940432]
[1761408498018,0.51517996,111230.0,111220.0,0.22940432]
[1761408498227,0.51717996,111230.0,111220.0,0.23140432]
[1761408498429,0.51719378,111230.0,111220.0,0.23140432]
[1761408503265,0.48512228,111230.0,111220.0,0.23140432]
[1761408505261,0.05530327,111230.0,111220.0,0.41122809]
[1761408505470,0.0312111,111230.0,111220.0,0.41122809]
[1761408505687,0.0312111,111230.0,111220.0,3.47033485]
[1761408507114,0.0312111,111230.0,111220.0,3.41122809]
[1761408510300,0.01199999,111230.0,111220.0,3.41122809]
[1761408511464,0.26171054,111230.0,111220.0,3.41122809]
[1761408520701,0.01199999,111230.0,111220.0,3.41122809]
[1761408522040,0.00999999,111230.0,111220.0,3.40922809]
[1761408522217,0.01199999,111230.0,111220.0,3.5040471]
[1761408522403,0.01199999,111230.0,111220.0,3.5050471]
[1761408522810,0.01199999,111230.0,111220.0,3.5031271]
[1761408524328,0.01179999,111230.0,111220.0,3.5031271]
[1761408524711,0.01179999,111230.0,111220.0,3.5029271]
[1761408525154,0.01159999,111230.0,111220.0,3.5029271]
[1761408525368,0.01159999,111230.0,111220.0,3.5027271]
[1761408525860,0.01139999,111230.0,111220.0,3.5027271]
[1761408526068,0.01139999,111230.0,111220.0,3.5025271]
[1761408526507,0.01119999,111230.0,111220.0,3.5025271]
[1761408526921,0.01119999,111230.0,111220.0,3.5023271]
[1761408527129,0.01119999,111230.0,111220.0,3.5022471]
[1761408528032,0.26091054,111230.0,111220.0,3.2793271]
[1761408528191,0.26091054,111230.0,111220.0,3.5020071]
[1761408528401,0.01119999,111230.0,111220.0,3.5020071]
[1761408528626,0.26091054,111230.0,111220.0,3.5020071]
[1761408530365,0.32340302,111230.0,111220.0,3.5020071]
[1761408530847,0.27137615,111230.0,111220.0,3.5020071]
[1761408532460,0.27137615,111230.0,111220.0,3.4442071]
[1761408534466,0.27137615,111230.0,111220.0,3.4441271]
[1761408534677,0.27137615,111230.0,111220.0,3.5016471]
[1761408535102,0.27117615,111230.0,111220.0,3.5016471]
[1761408535508,0.27117615,111230.0,111220.0,3.5014471]
[1761408536748,0.27117615,111230.0,111220.0,3.2791271]
[1761408536964,0.27117615,111230.0,111220.0,3.5014071]
[1761408537599,0.27117615,111230.0,111220.0,3.2791271]
[1761408537787,0.27117615,111230.0,111220.0,3.5012471]
[1761408541904,0.27097615,111230.0,111220.0,3.5012471]
[1761408542111,0.27077615,111230.0,111220.0,3.5012471]
[1761408542403,0.27077615,111230.0,111220.0,3.4432871]
[1761408542653,0.27077615,111230.0,111220.0,3.5006071]
[1761408543065,0.27057615,111230.0,111220.0,3.5006071]
[1761408543241,0.27037615,111230.0,111220.0,3.5006071]
[1761408543646,0.27037615,111230.0,111220.0,3.5004071]
[1761408543855,0.27037615,111230.0,111220.0,3.5002071]
[1761408544520,0.27017615,111230.0,111220.0,3.5002071]
[1761408544727,0.27017615,111230.0,111220.0,3.5000071]
[1761408546795,0.29716635,111230.0,111220.0,3.5000071]
[1761408547996,0.29716635,111230.0,111220.0,3.4422471]
[1761408549365,0.29696635,111230.0,111220.0,3.4422471]
[1761408549559,0.29696635,111230.0,111220.0,3.4420471]
[1761408554586,0.03679019,111230.0,111220.0,3.4420471]
[1761408555911,0.03659019,111230.0,111220.0,3.4420471]
[1761408561330,0.03659019,111230.0,111220.0,3.4418471]
[1761408562912,0.29676635,111230.0,111220.0,3.2777271]
[1761408563125,0.29656635,111230.0,111220.0,3.4984871]
[1761408563533,0.03639019,111230.0,111220.0,3.4984871]
[1761408568617,0.03639019,111230.0,111220.0,3.4982871]
[1761408579027,0.0285902,111230.0,111220.0,3.58810611]
[1761408590389,0.0285902,111230.0,111220.0,3.58706611]
[1761408591367,0.0285902,111230.0,111220.0,3.36734611]
[1761408591579,0.0285902,111230.0,111220.0,3.58702611]
[1761408592559,0.0285902,111230.0,111220.0,3.36734611]
[1761408592770,0.3407468,111230.0,111220.0,3.58698611]
[1761408593021,0.3407468,111230.0,111220.0,3.52946611]
[1761408593225,0.3407468,111230.0,111220.0,3.58698611]
[1761408594708,0.3137566,111230.0,111220.0,3.58698611]
[1761408596413,0.0016,111230.0,111220.0,3.58698611]
[1761408597794,0.0016,111230.0,111220.0,3.89914271]
[1761408598023,0.0016,111230.0,111220.0,3.58698611]